Cogmind - Beta 15 *** ADVENTURER MODE // 2025.10.20 @ 01:04:10 Player: Loganathor Result: Destroyed by P-60 Hacker with Shock Rifle Performance ------------- Evolutions (4) 2000 Regions Visited (6) 1200 Robots Destroyed (85) 425 Value Destroyed (2733) 2733 Prototype IDs (2) 40 Alien Tech Used (0) 0 Bonus (33) 33 TOTAL SCORE: 6431 Bonus ------- Follower Combat Kills 33 Cogmind --------- Core Integrity 0/850 Matter 295/300 Energy 99/100 System Corruption 3% Temperature Cool (0) Movement Core (200) Ox3 Location -6/Factory Parts ------- > --- POWER (2) -------- (None) > --- PROPULSION (3) --- (None) > --- UTILITY (6) ------ Medium Storage Unit Transport Network Coupler > --- WEAPON (4) ------- Flail > --- INVENTORY (10) --- Light Nuclear Core Carbon-fiber Leg Carbon-fiber Leg Medium Storage Unit Visual Processing Unit Advanced ECM Suite Beamcaster Flail Peak State ------------ > --- POWER ------------ Improved Ion Engine Improved Deuterium Engine > --- PROPULSION ------- Carbon-fiber Leg Carbon-fiber Leg Carbon-fiber Leg > --- UTILITY ---------- Large Storage Unit Visual Processing Unit Transport Network Coupler Improved Utility Shielding Hardlight Generator Hacking Suite > --- WEAPON ----------- Pulse Rifle Heavy Laser Heavy Laser Powered Hammer > --- INVENTORY -------- Medium Storage Unit Medium Storage Unit Visual Processing Unit Improved Signal Interpreter Advanced ECM Suite Improved Utility Shielding Hardlight Generator Beamcaster Rocket Launcher Flail Flail Powered Hammer [Rating: 46] Favorites ----------- Power Deuterium Engine Engine Deuterium Engine Power Core Light Nuclear Core Propulsion Carbon-fiber Leg Leg Carbon-fiber Leg Utility Visual Processing Unit Device Hardlight Generator Storage Small Storage Unit Processor Visual Processing Unit Hackware Hacking Suite Protection Improved Utility Shielding Weapon Flail Energy Gun EM Pulse Gun Ballistic Gun Precision Assault Rifle Launcher EMP Blaster Impact Weapon Flail Build | -11 -10 -9 -8 -8 -7 -6 ------- Run | Yrd Mat Mat Mat Sto Fac Fac Slots Evolved 8 | . . 2 2 . 2 2 Power 1 | . . . 1 . . . Propulsion 1 | . . 1 . . . . Utility 4 | . . 1 1 . 2 . Weapon 2 | . . . . . . 2 Parts Attached 59 | 6 5 9 5 15 13 6 Power 15 | 1 1 2 3 3 4 1 Engine 12 | 1 1 1 3 2 3 1 Core 3 | . . 1 . 1 1 . Reactor . | . . . . . . . Propulsion 12 | 2 . 4 . 4 2 . Treads . | . . . . . . . Leg 12 | 2 . 4 . 4 2 . Wheel . | . . . . . . . Hover . | . . . . . . . Flight . | . . . . . . . Utility 16 | 1 2 1 2 6 2 2 Device 7 | . 1 1 2 2 . 1 Storage 3 | 1 . . . 1 . 1 Processor 2 | . 1 . . . 1 . Hackware 1 | . . . . 1 . . Protection 3 | . . . . 2 1 . Artifact . | . . . . . . . Weapon 16 | 2 2 2 . 2 5 3 Energy Gun 5 | 1 . . . . 2 2 Energy Cannon . | . . . . . . . Ballistic Gun 4 | 1 . 1 . 2 . . Ballistic Cannon . | . . . . . . . Launcher 3 | . . 1 . . 2 . Special Weapon . | . . . . . . . Impact Weapon 4 | . 2 . . . 1 1 Slashing Weapon . | . . . . . . . Piercing Weapon . | . . . . . . . Special Melee Weapon . | . . . . . . . Unidentified Prototypes 2 | . . . . 1 1 . Corrupted Parts 1 | . . . . . 1 . System Corruption 3 | . . . . . 3 . Parts Lost 28 | . . 1 . 7 3 17 Power 8 | . . 1 . 2 2 3 Propulsion 7 | . . . . 3 1 3 Utility 8 | . . . . 1 . 7 Weapon 5 | . . . . 1 . 4 Highest Loss Streak 17 | . . 1 . 2 1 17 To Critical Strikes . | . . . . . . . Average Backups 8 | 4 7 7 5 8 13 11 Power . | . 1 1 . 1 . . Propulsion 1 | 2 2 1 2 . . . Utility 2 | . . . . 3 6 5 Weapon 3 | . 3 4 3 3 5 4 Tool/Special . | . . . . . . . Unused Backups 15 | . 7 . . . 2 6 Power 1 | . . . . . . 1 Propulsion 6 | . 4 . . . 1 1 Utility 6 | . 2 . . . . 4 Weapon 2 | . 1 . . . 1 . Tool/Special . | . . . . . . . Average Slot Usage (%) 92 | . 99 88 95 94 90 73 Engine 11 | . 13 4 17 15 9 8 Core 2 | . . 6 . 2 3 . Leg 23 | . 28 32 27 23 14 13 Device 5 | . 3 . 13 8 7 4 Storage 9 | . 14 11 9 9 7 5 Processor 11 | . 10 11 9 9 15 12 Hackware 2 | . . . . 2 7 4 Protection 3 | . . . . 6 6 4 Energy Gun 4 | . 5 3 9 . 2 13 Ballistic Gun 6 | . 11 4 . 8 3 . Impact Weapon 9 | . 10 10 9 8 7 5 Peak Build Rating 46 | 6 10 21 28 34 39 46 Average Rating 23 | 4 9 17 25 29 34 33 On Entrance 18 | . 6 10 19 28 27 39 Naked Turns . | . . . . . . . Heaviest Build 59 | 12 15 16 29 59 51 58 Greatest Support 54 | 20 20 54 54 54 45 45 Greatest Overweight (x) 9 | . . 4 . 1 3 9 Average Overweight (x) . | . . . . . 1 1 Largest Inventory Capacity 15 | 8 8 8 8 15 15 15 Average Capacity 11 | 7 8 8 8 14 15 12 Most Carried 15 | 6 8 8 8 12 15 15 Average Carried 8 | 4 7 7 5 8 13 11 Final Capacity 15 | 8 8 8 8 15 15 10 Final Carried 14 | 6 8 6 8 11 14 8 Class Distribution -------------------- 63% | Mutant 20% | Hacker-Mutant 13% | Scavenger-Mutant Dominant Class ---------------- Mutant | -10/Materials Mutant | -9/Materials Mutant | -8/Materials Mutant | -8/Storage Hacker-Mutant | -7/Factory Scavenger-Tank | -6/Factory Resources | -11 -10 -9 -8 -8 -7 -6 ----------- Run | Yrd Mat Mat Mat Sto Fac Fac Matter Collected 1255 | 185 138 201 50 188 291 202 Remotely . | . . . . . . . Salvage Created 2808 | . 43 794 105 1103 381 382 Parts 99 | . 3 33 2 33 15 13 Haulers Intercepted 1 | . . . . . 1 . Recyclers Shooed 2 | . . 1 . 1 . . Parts Field Recycled . | . . . . . . . Retrieved Matter . | . . . . . . . Parts Self-Destructed . | . . . . . . . Prevented . | . . . . . . . Kills | -11 -10 -9 -8 -8 -7 -6 ------- Run | Yrd Mat Mat Mat Sto Fac Fac Combat Hostiles Destroyed 66 | . . 20 4 27 6 9 Melee 15 | . . 3 1 10 1 . Guns 11 | . . 3 . 2 1 5 AOE 4 | . . . . . 3 1 Classes Destroyed 12 | . 2 4 . 2 4 . Builder 7 | . 1 2 . 1 3 . Hauler 1 | . . . . . 1 . Recycler 1 | . . . . . 1 . Operator 2 | . . 1 . . 1 . Watcher 8 | . 1 3 1 2 1 . Swarmer 16 | . . 3 3 6 . 4 Grunt 32 | . . 16 . 13 . 3 Duelist 2 | . . . . 2 . . Protector 1 | . . . . 1 . . Sentry 11 | . . 1 1 5 2 2 Hunter 3 | . . . . . 3 . Programmer 1 | . . . . . 1 . Best Kill Streak 10 | . 1 7 3 10 4 4 Combat Bots Only 9 | . . 6 3 9 2 4 Max Kills in Single Turn 2 | . 1 1 1 1 1 2 Gunslinging . | . . . . . . . Exploded 1 | . . . . . 1 1 Melee 1 | . . 1 1 1 1 . Uniques/NPCs Destroyed . | . . . . . . . Combat | -11 -10 -9 -8 -8 -7 -6 -------- Run | Yrd Mat Mat Mat Sto Fac Fac Hostile Shots Fired 824 | . . 126 27 238 121 312 Missed 253 | . . 40 8 59 40 106 Hits 571 | . . 86 19 179 81 206 Melee 7 | . . . . 7 . . Projectile 564 | . . 86 19 172 81 206 AOE 1 | . . . . . . 1 Critical Strikes 10 | . . 1 . 5 1 3 Part Disruptions 1 | . . . . . . 1 Damage Taken 4834 | . . 735 158 1581 406 1954 Core 1297 | . . 119 . 232 87 859 Absorbed by Shields 1220 | . . . . 504 292 424 Redirected to Shielding 166 | . . . . 22 26 118 Ignored by Resistances 1739 | . . 224 47 590 217 661 Regen/Repaired (Parts) 83 | . . . . 83 . . Core Remaining (%) 82 | 100 100 70 . 57 87 . Volleys Fired 78 | . 2 23 2 7 27 17 Largest 3 | . 2 2 1 1 1 3 Hottest 201 | . 60 43 40 28 75 201 Shots Fired 107 | . 3 24 2 7 28 43 Gun 89 | . 3 22 2 7 12 43 Cannon . | . . . . . . . Launcher 18 | . . 2 . . 16 . Special . | . . . . . . . Kinetic 31 | . 2 19 . 7 3 . Thermal 52 | . . . . . 9 43 Explosive 16 | . . . . . 16 . Electromagnetic 8 | . 1 5 2 . . . Robot Hit Streak 27 | . 1 5 1 4 27 17 Robot Miss Streak 2 | . 1 1 1 1 . 2 Penetration Max . | . . . . . . . Secondary Targets 1 | . . . . . . 1 Max Gunslinging Chain 1 | . . . . . . 1 Shots Hit Robots 225 | . 2 50 11 86 35 41 Core Hits 54 | . 1 12 1 13 16 11 Critical Kills 3 | . . 2 . 1 . . Critical Parts Destroyed 22 | . 1 4 1 14 1 1 Critical Strikes 27 | . 1 6 1 16 1 2 Burn 1 | . . . . . . 1 Smash 26 | . 1 6 1 16 1 1 Melee Attacks 172 | . 1 41 18 92 12 8 Impact 172 | . 1 41 18 92 12 8 Slashing . | . . . . . . . Piercing . | . . . . . . . Sneak Attacks 9 | . . 1 . 3 5 . Combat Hostiles . | . . . . . . . Follow-up Attacks . | . . . . . . . Damage Inflicted 7312 | . 66 1595 382 3057 1313 899 Guns 1258 | . 15 221 11 106 244 661 Cannons . | . . . . . . . Explosions 691 | . . 201 . . 490 . Melee 5363 | . 51 1173 371 2951 579 238 Ramming . | . . . . . . . Kinetic 353 | . 15 175 . 106 57 . Thermal 883 | . . 35 . . 187 661 Explosive 490 | . . . . . 490 . Electromagnetic 223 | . . 212 11 . . . Impact 5363 | . 51 1173 371 2951 579 238 Slashing . | . . . . . . . Piercing . | . . . . . . . Highest Corruption 6 | . . . . 1 6 3 Average Corruption 5 | . . . . 1 5 2 Corruption Purged . | . . . . . . . Corruption Blocked . | . . . . . . . Effects 13 | . . . . . 13 . Message Errors 2 | . . . . . 2 . Matter Fused 3 | . . . . . 3 . Energy Discharges 2 | . . . . . 2 . Data Loss (minor) 4 | . . . . . 4 . Misfires 1 | . . . . . 1 . Alerts 1 | . . . . . 1 . Overload Shots . | . . . . . . . Overflow Damage 1780 | . 51 345 134 865 311 74 Projectiles . | . . . . . . . Explosions 55 | . . 29 . . 26 . Melee 1725 | . 51 316 134 865 285 74 Knockbacks 21 | . . 4 . 11 2 4 Impact 20 | . . 4 . 11 2 3 Kinetic . | . . . . . . . Secondary 1 | . . . . . . 1 Self-Inflicted Damage 16 | . . 16 . . . . Shots 1 | . . 1 . . . . Rammed . | . . . . . . . Targets Rammed . | . . . . . . . Kicked . | . . . . . . . Crushed . | . . . . . . . Highest Temperature 619 | . . 7 . 17 128 619 Average Temperature 196 | . . 3 . 4 43 285 Received Heat Transfer 1676 | . . 357 45 716 51 507 Effects 23 | . . . . . . 23 Shutdowns 3 | . . . . . . 3 Energy Bleed 2 | . . . . . . 2 Interference 5 | . . . . . . 5 Matter Decay 3 | . . . . . . 3 Short Circuit 1 | . . . . . . 1 Damage (minor) 2 | . . . . . . 2 Damage (major) 6 | . . . . . . 6 Damage (core) 1 | . . . . . . 1 Siege Activations . | . . . . . . . Martial Activations . | . . . . . . . Shielding Activations . | . . . . . . . Robots Disrupted . | . . . . . . . Combat Hostiles . | . . . . . . . Robots Corrupted 38 | . . 15 3 16 2 2 Combat Hostiles 35 | . . 14 3 15 1 2 Parts Fried 45 | . 1 17 3 17 6 1 Impact Corruptions 75 | . 2 19 5 34 12 3 Robots Melted 1 | . . . . . . 1 Combat Hostiles 1 | . . . . . . 1 Parts Melted 2 | . . . . . . 2 Heat Transferred 1752 | . . 50 . . 296 1406 Parts Sabotaged . | . . . . . . . Parts Stolen . | . . . . . . . Parts Stripped . | . . . . . . . Power Chain Reactions 1 | . . 1 . . . . Alert | -11 -10 -9 -8 -8 -7 -6 ------- Run | Yrd Mat Mat Mat Sto Fac Fac Maximum Alert Level 1 | . . . . 1 . . Low Security (%) 82 | 100 100 100 100 27 100 100 Level 1 17 | . . . . 72 . . Level 2 . | . . . . . . . Level 3 . | . . . . . . . Level 4 . | . . . . . . . Level 5 . | . . . . . . . High Security . | . . . . . . . Max Security . | . . . . . . . Peak Influence 374 | . 7 140 70 374 132 101 Initial 65 | . . . 33 9 65 . Average 70 | . . 63 16 212 25 32 Influence Increases 2118 | . 12 554 112 906 293 241 Destroy 0b10 Robot/C 1320 | . . 400 80 540 120 180 Destroy 0b10 Robot/NC 100 | . 10 30 5 20 35 . Destroy Leader 288 | . 2 76 22 104 54 30 Allied During Kill 2 | . . . . 2 . . Disable Machine 18 | . . . . . 18 . Destroy Structure 75 | . . 3 5 . 66 1 Partial Spotted 15 | . . . . 15 . . Lose Combat Pursuer 300 | . . 45 . 225 . 30 Influence Decreases 2118 | . 12 460 179 764 462 241 Entered New Map 183 | . . . 61 18 104 . Time Decay 1692 | . 12 450 118 664 348 100 Lost Part 231 | . . 10 . 70 10 141 Lost Ally 12 | . . . . 12 . . Squads Dispatched 13 | . 3 2 . 3 4 1 Investigation 6 | . 3 1 . 1 1 . Extermination 2 | . . . . . 2 . Reinforcement 3 | . . 1 . . 1 1 Assault 2 | . . . . 2 . . Garrison . | . . . . . . . Intercept . | . . . . . . . Searches Triggered . | . . . . . . . Construction Impeded . | . . . . . . . Haulers Reinforced . | . . . . . . . Active Scanning Responses . | . . . . . . . Cargo Convoy Interrupts . | . . . . . . . Stealth | -11 -10 -9 -8 -8 -7 -6 --------- Run | Yrd Mat Mat Mat Sto Fac Fac Distress Signals 7 | . . 3 1 2 1 . Communications Jammed . | . . . . . . . Distress Signals . | . . . . . . . Times Spotted 107 | . 2 32 8 40 8 17 Peak Tracking Total 9 | . 1 5 4 8 2 9 Tactical Retreats 11 | . . 2 . 8 . 1 Traps | -11 -10 -9 -8 -8 -7 -6 ------- Run | Yrd Mat Mat Mat Sto Fac Fac Traps Triggered 6 | . . 1 . 3 1 1 Indirectly . | . . . . . . . Trap Hack Attempts . | . . . . . . . Triggered . | . . . . . . . Disarmed . | . . . . . . . Reprogrammed . | . . . . . . . Reused . | . . . . . . . Traps Extracted . | . . . . . . . Installed . | . . . . . . . Triggered . | . . . . . . . Machines | -11 -10 -9 -8 -8 -7 -6 ---------- Run | Yrd Mat Mat Mat Sto Fac Fac Machines Disabled 2 | . . . . . 2 . Max in Single Turn 1 | . . . . . 1 . Machines Repaired . | . . . . . . . Machines Dismantled . | . . . . . . . Machines Sabotaged . | . . . . . . . Overloaded Fab Kills . | . . . . . . . Hacking | -11 -10 -9 -8 -8 -7 -6 --------- Run | Yrd Mat Mat Mat Sto Fac Fac Machines Accessed 5 | . 2 1 . 2 . . Terminals 4 | . 2 1 . 1 . . Fabricators . | . . . . . . . Repair Stations 1 | . . . . 1 . . Recycling Units . | . . . . . . . Scanalyzers . | . . . . . . . Garrison Access . | . . . . . . . Total Hacks 12 | . 4 3 . 5 . . Successful 9 | . 3 2 . 4 . . Failed 3 | . 1 1 . 1 . . Catastrophic 1 | . 1 . . . . . Database Lockouts . | . . . . . . . Manual . | . . . . . . . Terminals 10 | . 4 3 . 3 . . Fabricators . | . . . . . . . Repair Stations 2 | . . . . 2 . . Recycling Units . | . . . . . . . Scanalyzers . | . . . . . . . Garrison Access . | . . . . . . . Terminal Hacks 7 | . 3 2 . 2 . . Record 6 | . 2 2 . 2 . . Alert Level 1 | . 1 . . . . . Fabricator Hacks . | . . . . . . . Repair Station Hacks 2 | . . . . 2 . . Scan Component 1 | . . . . 1 . . Repair 1 | . . . . 1 . . Recycling Unit Hacks . | . . . . . . . Scanalyzer . | . . . . . . . Garrison Access Hacks . | . . . . . . . Unauthorized Hacks . | . . . . . . . Terminals . | . . . . . . . Fabricators . | . . . . . . . Repair Stations . | . . . . . . . Recycling Units . | . . . . . . . Scanalyzers . | . . . . . . . Garrison Access . | . . . . . . . Data Cores Recovered 1 | . . 1 . . . . Used 1 | . . 1 . . . . Hacking Detections 2 | . . 1 . 1 . . Full Trace Events 1 | . . 1 . . . . Feedback Events . | . . . . . . . Feedback Blocked . | . . . . . . . Robot Schematics Acquired . | . . . . . . . Robots Built . | . . . . . . . Authchips . | . . . . . . . Time . | . . . . . . . Total Robot Build Rating . | . . . . . . . Part Schematics Acquired . | . . . . . . . Parts Built . | . . . . . . . Authchips . | . . . . . . . Time . | . . . . . . . Total Part Build Rating . | . . . . . . . Parts Repaired 1 | . . . . 1 . . Time 32 | . . . . 32 . . Parts Recycled . | . . . . . . . Recycled Matter . | . . . . . . . Retrieved Matter . | . . . . . . . Retrieved Components . | . . . . . . . Parts Scanalyzed . | . . . . . . . Part Schematics Acquired . | . . . . . . . Parts Damaged . | . . . . . . . Bothacking | -11 -10 -9 -8 -8 -7 -6 ------------ Run | Yrd Mat Mat Mat Sto Fac Fac Used RIF Installer . | . . . . . . . Robots Hacked . | . . . . . . . Non-combat . | . . . . . . . Combat . | . . . . . . . Robot Hacks Applied . | . . . . . . . Relay Couplers Released . | . . . . . . . Fabnet Peak Effective % . | . . . . . . . Robots Rewired . | . . . . . . . Allies Hacked . | . . . . . . . Hacks Repelled . | . . . . . . . Allies | -11 -10 -9 -8 -8 -7 -6 -------- Run | Yrd Mat Mat Mat Sto Fac Fac Total Allies 2 | . . . . 2 . . Largest Group 2 | . . . . 2 . . Highest-Rated Group 62 | . . . . 62 . . Highest-Rated Ally 31 | . . . . 31 . . Total Orders . | . . . . . . . Ally Attacks 15 | . . . . 15 . . Total Damage 242 | . . . . 242 . . Kills 1 | . . . . 1 . . Allies Corrupted . | . . . . . . . Allies Melted . | . . . . . . . Intel | -11 -10 -9 -8 -8 -7 -6 ------- Run | Yrd Mat Mat Mat Sto Fac Fac Active Infowar (turns) 5860 | . 1330 944 523 1500 1358 205 Optics 5525 | . 1003 944 523 1500 1358 197 Structural 327 | . 327 . . . . . T.N.C. 1563 | . . . . . 1358 205 Robot Analysis Total . | . . . . . . . Derelict Logs Recovered . | . . . . . . . Drone Launches . | . . . . . . . Drone Recoveries . | . . . . . . . Exploration | -11 -10 -9 -8 -8 -7 -6 ------------- Run | Yrd Mat Mat Mat Sto Fac Fac Turns Passed 6139 | 120 1390 944 523 1500 1358 304 Spaces Moved 2957 | 91 857 535 220 642 517 95 Core 56 | 26 . 1 . . . 29 Treads . | . . . . . . . Legs 2901 | 65 857 534 220 642 517 66 Wheels . | . . . . . . . Hover . | . . . . . . . Flight . | . . . . . . . Fastest Speed 50 | 50 120 120 120 120 190 50 Average Speed 150 | 100 120 120 120 159 236 193 Slowest Speed 500 | 120 120 250 120 190 330 500 Overloaded Moves . | . . . . . . . Propulsion Burnouts . | . . . . . . . Robots Hopped . | . . . . . . . Potential Cave-ins . | . . . . . . . Cave-ins Triggered . | . . . . . . . Exploration Rate (%) 37 | 5 94 50 16 84 9 5 Regions Visited 6 Branch Regions 1 Pre-discovered Areas . | . . . . . . . Known Exits Taken . | . . . . . . . Unknown Exits Taken 6 | 1 1 1 1 1 1 . Scrap Searched . | . . . . . . . Spaces Dug 6 | . . . 6 . . . Terrain Destroyed 96 | . . 3 6 . 87 . Melee 6 | . . . 6 . . . Projectile . | . . . . . . . AOE 90 | . . 3 . . 87 . Terrain Rammed . | . . . . . . . Walls Destroyed . | . . . . . . . Machines Disabled . | . . . . . . . Actions | -11 -10 -9 -8 -8 -7 -6 --------- Run | Yrd Mat Mat Mat Sto Fac Fac Total 4281 | 119 1217 748 449 976 602 170 Wait 901 | 12 331 128 198 189 10 33 Move 2951 | 90 856 534 219 641 516 95 Hop . | . . . . . . . Pick Up 70 | 11 12 2 6 20 13 6 Fast Attach 14 | 1 . 5 . . 3 5 Attach 37 | 5 3 2 3 14 6 4 Detach 3 | . . . . . 1 2 Swap 21 | . 3 6 2 3 7 . Drop 34 | . 9 7 1 10 7 . Fire 78 | . 2 23 2 7 27 17 Melee 172 | . 1 41 18 92 12 8 Ram . | . . . . . . . Kick . | . . . . . . . Crush . | . . . . . . . Escape Stasis . | . . . . . . . Rewire . | . . . . . . . Trap . | . . . . . . . Miscellaneous . | . . . . . . . Route ------- -11/Scrapyard -10/Materials (discovered 4 exits: *Mat x3 / [*Min]) -9/Materials (discovered 3 exits: *Mat x2 / [*Min]) -8/Materials -8/Storage -7/Factory -6/Factory History --------- Turn | Location | Event 20 | -11/Scrapyard | Discovered new exit (range 16) 121 | -11/Scrapyard | Entered Materials 122 | -10/Materials | Met a group of wandering Federalists 316 | -10/Materials | Build established: Mutant 463 | -10/Materials | Discovered new exit (range 12) 654 | -10/Materials | Discovered new exit (range 8) 1029 | -10/Materials | Discovered new exit (range 15) 1139 | -10/Materials | Discovered new exit (range 14) 1511 | -10/Materials | Entered another Materials area 1511 | -9/Materials | Evolved 2 slots: Propulsion x1, Utility x1 1890 | -9/Materials | Discovered new exit (range 7) 2259 | -9/Materials | Discovered new exit (range 8) 2366 | -9/Materials | Discovered new exit (range 9) 2455 | -9/Materials | Entered another Materials area 2455 | -8/Materials | Evolved 2 slots: Power x1, Utility x1 2855 | -8/Materials | Discovered new exit (range 13) 2978 | -8/Materials | Entered Storage 3053 | -8/Storage | Met a pair of Derelict thieves 3311 | -8/Storage | Destroyed 9 combat bots 4112 | -8/Storage | Repaired Flail 4385 | -8/Storage | Build established: Hacker-Mutant 4402 | -8/Storage | Discovered new exit (range 18) 4478 | -8/Storage | Entered Factory 4478 | -7/Factory | Evolved 2 slots: Utility x2 5607 | -7/Factory | Build established: Scavenger-Mutant 5696 | -7/Factory | Discovered new exit (range 7) 5836 | -7/Factory | Entered another Factory area 5836 | -6/Factory | Evolved 2 slots: Weapon x2 6066 | -6/Factory | Core integrity fell below 50% 6107 | -6/Factory | Core integrity fell below 20% 6140 | -6/Factory | Destroyed by P-60 Hacker with Shock Rifle Last Messages --------------- K-01 Serf collects debris. The unstable cave ceiling collapses. K-01 Serf collects debris. R-10 Processor collects Corrupted Carbon-fiber Leg. K-01 Serf collects debris. The unstable cave ceiling collapses. K-01 Serf collects debris. R-10 Processor collects Carbon-fiber Leg. Acquired Carbon-fiber Leg. K-01 Serf collects debris. R-10 Processor collects Lgt. Treads. K-01 Serf collects debris. M-13 Machinist repairs R-10 Processor Com. Wheel. K-01 Serf collects debris. Hardlight Generator destroyed. K-01 Serf collects debris. The unstable cave ceiling collapses. K-01 Serf collects debris. The unstable cave ceiling collapses. K-01 Serf collects debris. Map ----- +----------------------------------------------------+ | ?????????????????????????????????????????????????? | | ?????????????????????????????????????????????????? | | ?????????????????????????????????????????????????? | | ?????????????????????????????????????????????????? | | ?????????????????????????????????????????????????? | | ?????????????????????????????????????????????????? | | ?????????????????????????????????????????????????? | | ?????????????????????????????????????????????????? | | ?????????????????????????????????????????????????? | | ?????????????????????????????????????????????????? | | ?????????????????????????????????????????????????? | | ?????????????????????????????????????????????????? | | ?????????????????????????????????????????????????? | | ?????????????????????????????????????????????????? | | ?????????????????????????????????????????????????? | | ?????????????????????????????????????????????????? | | ???????????????#? ?????????????????????????????? | | ???????????? # ?##+########?????????????????? | | ???????????" ?# #?????????????????? | | ???????????" ?# #?????????????????? | | ??????????"" ?# #?????????????????? | | ?????????""" ?#= #?????????????????? | | ?????????""" ?# ==] #?????????????????? | | ????????? ## =]] #?????????????????? | | ????????? ## =] #?????????????????? | | ????????? # @ #?????????????????? | | ??????????##+# # ###+###?????????????????? | | ??????????# ### ###?????????????????? | | ??????????# """ ####??????????????? | | ??????????# """ # ??????????? | | ??????????# """ " ??????????? | | ??????????# # ???????????? | | ??? ??????# """ ####??????????????? | | ??# ????# """ # ##?????????????????? | | ??# ???# """%k p # #? #??????????????????? | | ??# ?# ##?? #??????????????????? | | ?## #### # #????#??????????????????? | | ? ###??? ???????????????????? | | ##???? ???????????????????? | | ##### " #?????????????????? | | "T ??????????????????? | | ######## ######## #?????????????????? | | ???###+#+########+###??????? ?#?????????????????? | | ?# % #??????? #???###?????????????? | | ?# #??????# #?! /! ?????????????? | | ?# ######## # ! ?????????????? | | ?# / + ????????????????? | | ?# """ """ """ """ # #???????????????????? | | ????"" """ """ """ # #???????????????????? | | ???????""" """ """ " #???????????????????? | +----------------------------------------------------+ Best States ------------- Heat Dissipation 53 Energy Generation 23 Energy Capacity 455 Matter Stores 300 Matter Capacity 300 Sight Range 18 Terrain Scan Density 10 Additional Mass Support 9 Armor Coverage 600 Resistance: KI 20 Resistance: TH 20 Resistance: EX 20 Resistance: EM 20 Resistance: I 20 Resistance: S 20 Resistance: P 20 Utility Shielding 66 Evasion (%) 55 Offensive Hacking 20 Item Schematics ----------------- None Robot Schematics ------------------ None Fabricated ------------ Nothing Repaired ---------- Flail | 30% | -8/Storage Alien Tech Used ----------------- None Achievements -------------- Dynamic Key Maybe Next Time I'll Detach My Launcher Challenges ------------ None Game ------ Seed SensorTargetingFirepult Manual? 0 Play Time 01:24:25 Cumulative 6.5 hours Start 2025.09.16 @ 00:53:34 End 2025.10.20 @ 01:04:10 Sessions 7 Manual Loads 0 Difficulty Adventurer Special Mode None Game No. 14 Rogue 5 Adventurer 9 Explorer 0 Win Type - Total 0 Types 0/0/0/0/0/0/0/0/0/0 Lore% 5 Gallery% 13 Achievement% 14 Wizard Run 0 Options --------- Layout 1 ASCII 0 Keyboard 0 Movement Mouse Keybinds 0 Fullscreen 1 Font 32/SmallcapsGlow Map View 77x35 Zoom Use 0% Tactical HUD 0 Map Filters NONE Filters NONE Steam 1 RUN: 45463165-564c-40cd-9701-31201b5765ad